{"text_format":"1","workbook":"xlsx","n_sheets":2,"sheets":["Свод","Нормируемые ТМЦ"],"not_rendered":{"charts":0,"images":1,"macros":1,"external_links":0,"defined_names":11,"comments":0,"pivot_tables":0},"unopened":[],"bounds":{"document_bytes":16777216,"sheet_cells":100000,"rows_first":2000,"rows_last":500,"rows_between":2000,"halvings":0,"cell_chars":16384,"cell_head_chars":4096},"cells_cut":0,"cells_raw":0,"read":"whole","date_system":"1900"}

{"sheet":"Свод","index":0,"n_rows":6,"n_cols":2,"rows_kept":6,"cut":false,"hidden":false,"merged":[]}
["Плановый выпуск","Шт."]
["Конфета 1",50]
["Конфета 2"]
["Конфета 3",30]
["Конфета 4"]
["Конфета 5",70]

{"sheet":"Нормируемые ТМЦ","index":1,"n_rows":19,"n_cols":12,"rows_kept":19,"cut":false,"hidden":false,"merged":[[2,2,4,2],[2,11,4,11],[3,10,4,10],[2,1,4,1],[2,3,4,3],[2,4,4,4],[2,5,2,9]]}
[null,null,null,null,null,0,15,16,17,18]
[]
[null,"Наименование ТМЦ","Статья элемента","Ед. изм.","Всего вес по изделиям                   ",null,null,null,null,null,"цены 2014","Потребность на программу, руб."]
[null,null,null,null,null,{"$f":"Свод!A2","v":"Конфета 1"},{"$f":"Свод!A3","v":"Конфета 2"},{"$f":"Свод!A4","v":"Конфета 3"},{"$f":"Свод!A5","v":"Конфета 4"},{"$f":"Свод!A6","v":"Конфета 5"},"Цена"]
[null,null,null,null,null,{"$f":"VLOOKUP(F4,ОбъемПроизводства,2,FALSE)","v":50},null,{"$f":"VLOOKUP(H4,ОбъемПроизводства,2,FALSE)","v":30},0,70]
[null,"Фантик 1","Сырье и материалы","КГ",{"$f":"($F$5*F6)","v":0},0,null,null,null,null,24,{"$f":"E6*K6","v":0}]
[null,"Фантик 2","Сырье и материалы","КГ",0,0,null,null,null,null,24.3,0]
[null,"Фантик 3","Сырье и материалы","КГ",0,0,null,null,null,null,4.5,0]
[null,"Фантик 4","Сырье и материалы","КГ",0,null,null,null,null,null,22.523,0]
[null,"Фантик 5","Сырье и материалы","КГ",0,null,null,null,null,null,22.523,0]
[null,"Фантик 6","Сырье и материалы","КГ",{"$f":"($F$5*F11)","v":485.20000000000005},9.7040000000000006,null,null,null,null,22.523,10928.159600000001]
[null,"Фантик 7","Сырье и материалы","КГ",{"$f":"($F$5*F12)","v":0},null,null,null,null,null,4.5,0]
[null,"Фантик 8","Сырье и материалы","КГ",4547.2,90.944000000000003,null,null,null,null,36.119999999999997,164244.86399999997]
[null,"Фантик 9","Сырье и материалы","КГ",112608,2252.16,null,null,null,null,28.490959999999998,3208310.0236799996]
[null,"Фантик 10","Сырье и материалы","КГ",0,null,null,null,null,null,24,0]
[null,"Фантик 11","Сырье и материалы","КГ",0,null,null,null,null,null,24,0]
[null,"Фантик 12","Сырье и материалы","КГ",5257.2000000000007,105.14400000000001,null,null,null,null,24,126172.80000000002]
[null,"Фантик 13","Сырье и материалы","КГ",0,null,null,null,null,null,4.5,0]
[null,"Фантик 14","Сырье и материалы","КГ",0,null,null,null,null,null,24,0]